[Event "Late-Titled-Tuesday-Blitz-January-23-2024"]
[Site "Chess.com"]
[Date "2024.01.23"]
[Round "10"]
[White "Rdeux42"]
[Black "Fh2411"]
[Result "0-1"]
[WhiteElo "2429"]
[BlackElo "2569"]
[TimeControl "180+1"]
[EndTime "15:51:47 PST"]
[Termination "Fh2411 won by resignation"]

1. d4 {[%clk 0:02:54.9]} 1... d5 {[%clk 0:02:57.7]} 2. Nf3 {[%clk 0:02:55.3]}
2... c6 {[%clk 0:02:57.6]} 3. c4 {[%clk 0:02:54.9]} 3... Nf6 {[%clk 0:02:57.9]}
4. Nc3 {[%clk 0:02:55.2]} 4... dxc4 {[%clk 0:02:55.9]} 5. a4 {[%clk 0:02:55.2]}
5... Bf5 {[%clk 0:02:55.7]} 6. e3 {[%clk 0:02:52.8]} 6... e6 {[%clk 0:02:55.6]}
7. Bxc4 {[%clk 0:02:52.9]} 7... Bb4 {[%clk 0:02:56.2]} 8. O-O {[%clk 0:02:53.2]}
8... Nbd7 {[%clk 0:02:56]} 9. Bd2 {[%clk 0:02:53.5]} 9... a5 {[%clk 0:02:54]}
10. Re1 {[%clk 0:02:53.5]} 10... O-O {[%clk 0:02:37.6]} 11. h3 {[%clk
0:02:51.6]} 11... Bg6 {[%clk 0:02:36.4]} 12. Ne2 {[%clk 0:02:48.9]} 12... Bd6
{[%clk 0:02:30.6]} 13. Nh4 {[%clk 0:02:43.6]} 13... Bh5 {[%clk 0:02:16.7]} 14.
Nf3 {[%clk 0:02:41.3]} 14... Nd5 {[%clk 0:02:02]} 15. Nc3 {[%clk 0:02:30.5]}
15... Nb4 {[%clk 0:01:57.7]} 16. Be2 {[%clk 0:02:28.9]} 16... Bg6 {[%clk
0:01:46]} 17. e4 {[%clk 0:02:25.3]} 17... e5 {[%clk 0:01:44.4]} 18. Bc4 {[%clk
0:02:21.2]} 18... exd4 {[%clk 0:01:31.5]} 19. Nxd4 {[%clk 0:02:22.1]} 19... Ne5
{[%clk 0:01:31.8]} 20. Bf1 {[%clk 0:02:15.4]} 20... Bc5 {[%clk 0:01:29.5]} 21.
Be3 {[%clk 0:02:13.2]} 21... Ned3 {[%clk 0:01:19.4]} 22. Bxd3 {[%clk 0:02:10.9]}
22... Bxd4 {[%clk 0:01:19.7]} 23. Bf1 {[%clk 0:02:03.6]} 23... Bxe3 {[%clk
0:01:12.4]} 24. Rxe3 {[%clk 0:02:04.5]} 24... Qb6 {[%clk 0:01:06.6]} 25. Qe2
{[%clk 0:01:56]} 25... Rad8 {[%clk 0:01:03.6]} 26. Rd1 {[%clk 0:01:47.7]} 26...
Rxd1 {[%clk 0:01:01.8]} 27. Qxd1 {[%clk 0:01:48.6]} 27... Rd8 {[%clk 0:01:02]}
28. Qe2 {[%clk 0:01:47.9]} 28... h6 {[%clk 0:01:00.8]} 29. Kh2 {[%clk
0:01:48.1]} 29... Qc7+ {[%clk 0:00:55.5]} 30. g3 {[%clk 0:01:48.2]} 30... Qd6
{[%clk 0:00:50.3]} 31. f4 {[%clk 0:01:46.4]} 31... Qd2 {[%clk 0:00:44.8]} 32.
Qxd2 {[%clk 0:01:44.3]} 32... Rxd2+ {[%clk 0:00:43.9]} 33. Re2 {[%clk
0:01:45.2]} 33... Rd4 {[%clk 0:00:34.9]} 34. f5 {[%clk 0:01:44.4]} 34... Bh7
{[%clk 0:00:34.6]} 35. Kg2 {[%clk 0:01:40.4]} 35... f6 {[%clk 0:00:33]} 36. Kf2
{[%clk 0:01:39.2]} 36... Kf8 {[%clk 0:00:31.8]} 37. Ke1 {[%clk 0:01:29.8]} 37...
Bg8 {[%clk 0:00:31.3]} 38. Rd2 {[%clk 0:01:29.6]} 38... Rxd2 {[%clk 0:00:27.6]}
39. Kxd2 {[%clk 0:01:30.5]} 39... Ke7 {[%clk 0:00:27.6]} 40. Ke3 {[%clk
0:01:26.3]} 40... Kd6 {[%clk 0:00:27.7]} 41. Kd4 {[%clk 0:01:24.1]} 41... Bb3
{[%clk 0:00:25]} 42. Bc4 {[%clk 0:01:08]} 42... Nc2+ {[%clk 0:00:15.5]} 43. Kd3
{[%clk 0:01:08.3]} 43... Nb4+ {[%clk 0:00:13.3]} 44. Kd4 {[%clk 0:01:07.9]}
44... c5+ {[%clk 0:00:13.5]} 45. Ke3 {[%clk 0:01:05.3]} 45... Bxc4 {[%clk
0:00:14.4]} 0-1

[Event "Late-Titled-Tuesday-Blitz-January-23-2024"]
[Site "Chess.com"]
[Date "2024.01.23"]
[Round "10"]
[White "Fernando_Offermann"]
[Black "youngdinousaur"]
[Result "1/2-1/2"]
[WhiteElo "2477"]
[BlackElo "2351"]
[TimeControl "180+1"]
[EndTime "15:51:50 PST"]
[Termination "Game drawn by repetition"]

1. Nf3 {[%clk 0:03:00.9]} 1... Nf6 {[%clk 0:02:59.5]} 2. g3 {[%clk 0:02:56.2]}
2... e6 {[%clk 0:02:59.6]} 3. Bg2 {[%clk 0:02:56.6]} 3... d5 {[%clk 0:03:00.2]}
4. O-O {[%clk 0:02:57]} 4... Be7 {[%clk 0:03:00.8]} 5. d3 {[%clk 0:02:57.5]}
5... O-O {[%clk 0:03:01.3]} 6. Nbd2 {[%clk 0:02:57.8]} 6... c5 {[%clk
0:03:01.9]} 7. e4 {[%clk 0:02:58.2]} 7... Nc6 {[%clk 0:03:01.6]} 8. Re1 {[%clk
0:02:57.7]} 8... b5 {[%clk 0:03:01.4]} 9. a4 {[%clk 0:02:56.9]} 9... b4 {[%clk
0:03:00.9]} 10. e5 {[%clk 0:02:57.3]} 10... Nd7 {[%clk 0:03:00.5]} 11. Nf1
{[%clk 0:02:56.6]} 11... Bb7 {[%clk 0:02:54.7]} 12. h4 {[%clk 0:02:56]} 12...
Qc7 {[%clk 0:02:45.8]} 13. Bf4 {[%clk 0:02:55.2]} 13... c4 {[%clk 0:02:44.8]}
14. d4 {[%clk 0:02:54.9]} 14... c3 {[%clk 0:02:44.8]} 15. b3 {[%clk 0:02:54.7]}
15... Qb6 {[%clk 0:02:43.5]} 16. h5 {[%clk 0:02:50.3]} 16... h6 {[%clk
0:02:40.6]} 17. N1h2 {[%clk 0:02:49.8]} 17... Ba6 {[%clk 0:02:40.2]} 18. Ng4
{[%clk 0:02:49.5]} 18... Rfc8 {[%clk 0:02:36.2]} 19. Bf1 {[%clk 0:02:24.9]}
19... Bf8 {[%clk 0:02:30.8]} 20. Bxa6 {[%clk 0:02:23.3]} 20... Qxa6 {[%clk
0:02:31.7]} 21. Kg2 {[%clk 0:02:22.7]} 21... Ne7 {[%clk 0:02:30.1]} 22. Qc1
{[%clk 0:02:21.4]} 22... Nf5 {[%clk 0:02:29.4]} 23. Ne3 {[%clk 0:02:20.6]} 23...
Nxe3+ {[%clk 0:02:20.1]} 24. Qxe3 {[%clk 0:02:19.4]} 24... Nb8 {[%clk
0:02:01.8]} 25. g4 {[%clk 0:02:19.2]} 25... Nc6 {[%clk 0:02:01.5]} 26. g5 {[%clk
0:02:19.4]} 26... hxg5 {[%clk 0:02:01.6]} 27. Bxg5 {[%clk 0:02:19.6]} 27... Ne7
{[%clk 0:02:01.6]} 28. Nh4 {[%clk 0:02:16.7]} 28... Rc7 {[%clk 0:01:50.2]} 29.
h6 {[%clk 0:02:16.7]} 29... g6 {[%clk 0:01:26.3]} 30. Rh1 {[%clk 0:02:07.9]}
30... Kh7 {[%clk 0:01:22.8]} 31. Rae1 {[%clk 0:02:03.4]} 31... Nf5 {[%clk
0:01:22]} 32. Qf4 {[%clk 0:02:00.3]} 32... Be7 {[%clk 0:01:18.1]} 33. Nxf5
{[%clk 0:01:59.1]} 33... gxf5 {[%clk 0:01:16.2]} 34. Bxe7 {[%clk 0:01:54.5]}
34... Rxe7 {[%clk 0:01:17.1]} 35. Qh4 {[%clk 0:01:53.6]} 35... Rg8+ {[%clk
0:01:15.9]} 36. Kf3 {[%clk 0:01:53.6]} 36... Qb7 {[%clk 0:01:10]} 37. Reg1
{[%clk 0:01:51.3]} 37... Rg6 {[%clk 0:01:02.5]} 38. Rxg6 {[%clk 0:01:47]} 38...
fxg6 {[%clk 0:01:02.1]} 39. Qf6 {[%clk 0:01:47.4]} 39... Qd7 {[%clk 0:01:02.2]}
40. Rg1 {[%clk 0:01:46.7]} 40... Qe8 {[%clk 0:01:02.6]} 41. Rxg6 {[%clk
0:01:44.6]} 41... Qxg6 {[%clk 0:01:00.5]} 42. Qxe7+ {[%clk 0:01:44.7]} 42...
Kxh6 {[%clk 0:01:01.1]} 43. Qh4+ {[%clk 0:01:43.3]} 43... Qh5+ {[%clk
0:00:57.8]} 44. Qxh5+ {[%clk 0:01:37.3]} 44... Kxh5 {[%clk 0:00:58.7]} 45. Kg3
{[%clk 0:01:35.5]} 45... Kg5 {[%clk 0:00:55.7]} 46. a5 {[%clk 0:01:25.7]} 46...
f4+ {[%clk 0:00:50.6]} 47. Kh3 {[%clk 0:01:20.2]} 47... Kf5 {[%clk 0:00:19.4]}
48. f3 {[%clk 0:01:17.9]} 48... Kg5 {[%clk 0:00:19.7]} 49. a6 {[%clk 0:01:13.5]}
49... Kh5 {[%clk 0:00:19.1]} 50. Kh2 {[%clk 0:01:13.7]} 50... Kg5 {[%clk
0:00:19.4]} 51. Kh3 {[%clk 0:01:13.9]} 51... Kh5 {[%clk 0:00:19.9]} 52. Kh2
{[%clk 0:01:14.3]} 52... Kg5 {[%clk 0:00:20.2]} 53. Kh3 {[%clk 0:01:14.7]}
1/2-1/2

[Event "Late-Titled-Tuesday-Blitz-January-23-2024"]
[Site "Chess.com"]
[Date "2024.01.23"]
[Round "10"]
[White "GMKrikor"]
[Black "1mbl4"]
[Result "0-1"]
[WhiteElo "2768"]
[BlackElo "2610"]
[TimeControl "180+1"]
[EndTime "15:51:57 PST"]
[Termination "1mbl4 won by checkmate"]

1. Nf3 {[%clk 0:03:00.9]} 1... Nf6 {[%clk 0:02:59.5]} 2. c4 {[%clk 0:02:59.3]}
2... g6 {[%clk 0:02:59.4]} 3. Nc3 {[%clk 0:02:58.9]} 3... Bg7 {[%clk 0:02:59.6]}
4. e4 {[%clk 0:02:58.1]} 4... d6 {[%clk 0:02:59.5]} 5. d4 {[%clk 0:02:58.2]}
5... O-O {[%clk 0:02:59.7]} 6. h3 {[%clk 0:02:58.1]} 6... e5 {[%clk 0:02:58.8]}
7. d5 {[%clk 0:02:58.1]} 7... Na6 {[%clk 0:02:57.9]} 8. Be3 {[%clk 0:02:56.2]}
8... Nc5 {[%clk 0:02:56.6]} 9. Nd2 {[%clk 0:02:54.4]} 9... a5 {[%clk 0:02:52.2]}
10. g4 {[%clk 0:02:53.8]} 10... h5 {[%clk 0:02:50]} 11. Be2 {[%clk 0:02:50.7]}
11... hxg4 {[%clk 0:02:16.9]} 12. hxg4 {[%clk 0:02:50.9]} 12... c6 {[%clk
0:02:16.1]} 13. g5 {[%clk 0:02:17.7]} 13... Nh7 {[%clk 0:02:08.8]} 14. Nf3
{[%clk 0:02:17.7]} 14... a4 {[%clk 0:01:58.8]} 15. Qd2 {[%clk 0:02:11.1]} 15...
cxd5 {[%clk 0:01:49.9]} 16. Nxd5 {[%clk 0:02:00.8]} 16... Nxe4 {[%clk
0:01:37.3]} 17. Qc2 {[%clk 0:02:01]} 17... Nexg5 {[%clk 0:01:06.1]} 18. Nxg5
{[%clk 0:01:58.5]} 18... Nxg5 {[%clk 0:01:05.3]} 19. O-O-O {[%clk 0:01:52.6]}
19... Bf5 {[%clk 0:01:02.7]} 20. Bd3 {[%clk 0:01:48.8]} 20... Bxd3 {[%clk
0:00:58.2]} 21. Qxd3 {[%clk 0:01:47.9]} 21... Ne6 {[%clk 0:00:49.7]} 22. Kb1
{[%clk 0:01:43]} 22... a3 {[%clk 0:00:44]} 23. b3 {[%clk 0:01:41.2]} 23... Nd4
{[%clk 0:00:41]} 24. f4 {[%clk 0:01:12.1]} 24... Re8 {[%clk 0:00:39]} 25. fxe5
{[%clk 0:01:11.2]} 25... dxe5 {[%clk 0:00:38.4]} 26. Rdf1 {[%clk 0:00:59]} 26...
b5 {[%clk 0:00:37]} 27. Bh6 {[%clk 0:00:37.9]} 27... bxc4 {[%clk 0:00:32.9]} 28.
Qh3 {[%clk 0:00:36.9]} 28... Qxd5 {[%clk 0:00:22.8]} 29. Re1 {[%clk 0:00:15.2]}
29... cxb3 {[%clk 0:00:19.7]} 30. Bxg7 {[%clk 0:00:12.5]} 30... bxa2+ {[%clk
0:00:19.3]} 31. Ka1 {[%clk 0:00:12.4]} 31... Nc2# {[%clk 0:00:19]} 0-1

[Event "Late-Titled-Tuesday-Blitz-January-23-2024"]
[Site "Chess.com"]
[Date "2024.01.23"]
[Round "10"]
[White "otrov-11"]
[Black "nindjaxx8"]
[Result "1-0"]
[WhiteElo "2509"]
[BlackElo "2605"]
[TimeControl "180+1"]
[EndTime "15:52:02 PST"]
[Termination "otrov-11 won on time"]

1. d4 {[%clk 0:03:00.9]} 1... d5 {[%clk 0:02:56.7]} 2. c4 {[%clk 0:03:01.4]}
2... e6 {[%clk 0:02:56.6]} 3. Nf3 {[%clk 0:03:01.3]} 3... Nf6 {[%clk 0:02:55.8]}
4. g3 {[%clk 0:03:01.9]} 4... Be7 {[%clk 0:02:48.5]} 5. Bg2 {[%clk 0:03:02.2]}
5... O-O {[%clk 0:02:48.2]} 6. O-O {[%clk 0:03:02.9]} 6... b6 {[%clk 0:02:44.9]}
7. cxd5 {[%clk 0:03:02.3]} 7... exd5 {[%clk 0:02:43.6]} 8. Nc3 {[%clk
0:03:02.9]} 8... Bb7 {[%clk 0:02:38.7]} 9. Ne5 {[%clk 0:03:03.5]} 9... Nbd7
{[%clk 0:02:38.3]} 10. Qa4 {[%clk 0:03:02.4]} 10... Nb8 {[%clk 0:02:35.1]} 11.
Bg5 {[%clk 0:02:55.5]} 11... c6 {[%clk 0:02:34.5]} 12. Rad1 {[%clk 0:02:37.9]}
12... b5 {[%clk 0:02:34.1]} 13. Qc2 {[%clk 0:02:38.5]} 13... Nbd7 {[%clk
0:02:31.7]} 14. e4 {[%clk 0:02:28.1]} 14... b4 {[%clk 0:01:49.4]} 15. Nxd7
{[%clk 0:02:16.5]} 15... Qxd7 {[%clk 0:01:46]} 16. Bxf6 {[%clk 0:02:12.4]} 16...
Bxf6 {[%clk 0:01:42.5]} 17. Na4 {[%clk 0:02:13.1]} 17... Rae8 {[%clk 0:00:48.3]}
18. Nc5 {[%clk 0:02:05.9]} 18... Qc7 {[%clk 0:00:47.3]} 19. Nxb7 {[%clk
0:01:59.8]} 19... Qxb7 {[%clk 0:00:46.5]} 20. exd5 {[%clk 0:02:00.5]} 20... cxd5
{[%clk 0:00:46.6]} 21. Qf5 {[%clk 0:02:01.2]} 21... Rd8 {[%clk 0:00:44.9]} 22.
Rfe1 {[%clk 0:02:01.4]} 22... b3 {[%clk 0:00:42.5]} 23. a3 {[%clk 0:01:50.8]}
23... Qb6 {[%clk 0:00:34.8]} 24. Bxd5 {[%clk 0:01:43.7]} 24... Bxd4 {[%clk
0:00:33.7]} 25. Re7 {[%clk 0:01:00.7]} 25... Bxb2 {[%clk 0:00:08]} 26. Rxf7
{[%clk 0:00:57.6]} 26... Rxf7 {[%clk 0:00:07.5]} 27. Qxf7+ {[%clk 0:00:57.2]}
27... Kh8 {[%clk 0:00:08]} 28. Re1 {[%clk 0:00:57.5]} 28... Qb5 {[%clk
0:00:02.7]} 29. Bxb3 {[%clk 0:00:55.8]} 29... Bxa3 {[%clk 0:00:03]} 30. Bc4
{[%clk 0:00:47.9]} 30... Qc6 {[%clk 0:00:03.4]} 31. Bd5 {[%clk 0:00:34.6]} 31...
Qc8 {[%clk 0:00:01.6]} 32. h4 {[%clk 0:00:32.5]} 32... Bc5 {[%clk 0:00:01.3]}
33. Qh5 {[%clk 0:00:28.3]} 33... Rf8 {[%clk 0:00:01.2]} 34. Re2 {[%clk
0:00:27.7]} 1-0

[Event "Late-Titled-Tuesday-Blitz-January-23-2024"]
[Site "Chess.com"]
[Date "2024.01.23"]
[Round "10"]
[White "ItalianMachine"]
[Black "Herman-NY"]
[Result "0-1"]
[WhiteElo "2365"]
[BlackElo "2489"]
[TimeControl "180+1"]
[EndTime "15:52:02 PST"]
[Termination "Herman-NY won by resignation"]

1. e4 {[%clk 0:03:00.9]} 1... e5 {[%clk 0:02:58.4]} 2. Nf3 {[%clk 0:03:00.1]}
2... Nc6 {[%clk 0:02:58.4]} 3. Bb5 {[%clk 0:03:00.5]} 3... a6 {[%clk 0:02:58.2]}
4. Ba4 {[%clk 0:03:01.2]} 4... Nf6 {[%clk 0:02:57.5]} 5. O-O {[%clk 0:03:01.8]}
5... Be7 {[%clk 0:02:57.6]} 6. Re1 {[%clk 0:03:01.6]} 6... b5 {[%clk 0:02:58]}
7. Bb3 {[%clk 0:03:02.2]} 7... O-O {[%clk 0:02:58.5]} 8. a4 {[%clk 0:02:59.8]}
8... b4 {[%clk 0:02:58.6]} 9. d3 {[%clk 0:02:59.6]} 9... d6 {[%clk 0:02:53.8]}
10. h3 {[%clk 0:02:58.7]} 10... Na5 {[%clk 0:02:49.2]} 11. Ba2 {[%clk 0:02:59]}
11... c5 {[%clk 0:02:49]} 12. Nbd2 {[%clk 0:02:53.1]} 12... h6 {[%clk
0:02:47.2]} 13. Nc4 {[%clk 0:02:34]} 13... Nxc4 {[%clk 0:02:38.5]} 14. Bxc4
{[%clk 0:02:34.9]} 14... Be6 {[%clk 0:02:33.6]} 15. Bxe6 {[%clk 0:01:59]} 15...
fxe6 {[%clk 0:02:34]} 16. Nh2 {[%clk 0:01:49.3]} 16... Qe8 {[%clk 0:02:24.6]}
17. Rf1 {[%clk 0:01:32.7]} 17... Nh5 {[%clk 0:02:18.7]} 18. Qg4 {[%clk
0:01:29.5]} 18... Qf7 {[%clk 0:02:14.3]} 19. Bxh6 {[%clk 0:01:28.7]} 19... a5
{[%clk 0:02:05.4]} 20. Bd2 {[%clk 0:01:21.1]} 20... Nf6 {[%clk 0:01:53.6]} 21.
Qe2 {[%clk 0:01:17.7]} 21... Qg6 {[%clk 0:01:52.4]} 22. f4 {[%clk 0:01:09.5]}
22... Nh5 {[%clk 0:01:50.7]} 23. f5 {[%clk 0:00:46.7]} 23... exf5 {[%clk
0:01:17.6]} 24. exf5 {[%clk 0:00:46]} 24... Ng3 {[%clk 0:01:12.5]} 25. Qf3
{[%clk 0:00:23.5]} 25... Nxf5 {[%clk 0:00:49.6]} 26. Qd5+ {[%clk 0:00:14.5]}
26... Kh8 {[%clk 0:00:49.8]} 27. Rf2 {[%clk 0:00:10.4]} 27... Bh4 {[%clk
0:00:37.7]} 28. Rf3 {[%clk 0:00:09.5]} 28... Nd4 {[%clk 0:00:32.1]} 29. Rxf8+
{[%clk 0:00:09.7]} 29... Rxf8 {[%clk 0:00:32]} 30. Ng4 {[%clk 0:00:10.4]} 30...
Nxc2 {[%clk 0:00:26.3]} 31. Rc1 {[%clk 0:00:10.6]} 31... Nd4 {[%clk 0:00:25.4]}
32. Re1 {[%clk 0:00:05.2]} 32... Bxe1 {[%clk 0:00:25]} 33. Bxe1 {[%clk 0:00:06]}
33... Qxd3 {[%clk 0:00:19.7]} 34. Qxd6 {[%clk 0:00:06.2]} 34... Ne2+ {[%clk
0:00:19.9]} 35. Kh2 {[%clk 0:00:06.8]} 35... Qxd6 {[%clk 0:00:20.6]} 0-1

[Event "Late-Titled-Tuesday-Blitz-January-23-2024"]
[Site "Chess.com"]
[Date "2024.01.23"]
[Round "10"]
[White "reevecanada"]
[Black "AlexPapasimakopoulos"]
[Result "0-1"]
[WhiteElo "2638"]
[BlackElo "2766"]
[TimeControl "180+1"]
[EndTime "15:52:03 PST"]
[Termination "AlexPapasimakopoulos won by resignation"]

1. e4 {[%clk 0:03:00.9]} 1... e6 {[%clk 0:02:53.4]} 2. Nf3 {[%clk 0:03:00.4]}
2... d5 {[%clk 0:02:53.7]} 3. Nc3 {[%clk 0:03:00.3]} 3... Nf6 {[%clk 0:02:53.7]}
4. e5 {[%clk 0:03:01]} 4... Nfd7 {[%clk 0:02:54]} 5. d4 {[%clk 0:03:01.7]} 5...
c5 {[%clk 0:02:54.5]} 6. Bg5 {[%clk 0:03:02.3]} 6... Qb6 {[%clk 0:02:54.4]} 7.
dxc5 {[%clk 0:03:02.6]} 7... Bxc5 {[%clk 0:02:54]} 8. Qd2 {[%clk 0:03:03.2]}
8... Nc6 {[%clk 0:02:51.8]} 9. O-O-O {[%clk 0:03:01.2]} 9... Bxf2 {[%clk
0:02:45.7]} 10. Na4 {[%clk 0:02:58.6]} 10... Qa5 {[%clk 0:02:44.1]} 11. Qxf2
{[%clk 0:02:58.3]} 11... Qxa4 {[%clk 0:02:44.3]} 12. Kb1 {[%clk 0:02:58.9]}
12... h6 {[%clk 0:02:43]} 13. Bc1 {[%clk 0:02:56.7]} 13... Ndxe5 {[%clk
0:02:38.4]} 14. Nxe5 {[%clk 0:02:56.6]} 14... Nxe5 {[%clk 0:02:39.3]} 15. Qg3
{[%clk 0:02:56.1]} 15... Ng6 {[%clk 0:02:38.4]} 16. b3 {[%clk 0:02:55.4]} 16...
Qh4 {[%clk 0:02:37.8]} 17. Qd6 {[%clk 0:02:50.7]} 17... Qe7 {[%clk 0:02:36.5]}
18. Qg3 {[%clk 0:02:40]} 18... O-O {[%clk 0:02:32.9]} 19. h4 {[%clk 0:02:40.6]}
19... Qf6 {[%clk 0:02:21.2]} 20. h5 {[%clk 0:02:39]} 20... Ne7 {[%clk
0:02:21.2]} 21. Bb2 {[%clk 0:02:37.8]} 21... Nf5 {[%clk 0:02:19]} 22. Qf4 {[%clk
0:02:33.2]} 22... Qg5 {[%clk 0:02:19]} 23. Qf3 {[%clk 0:02:18.2]} 23... Bd7
{[%clk 0:02:13.2]} 24. g4 {[%clk 0:02:16.5]} 24... Ne3 {[%clk 0:02:13.1]} 25.
Bc1 {[%clk 0:01:52.7]} 25... Qxg4 {[%clk 0:02:12.9]} 26. Qxe3 {[%clk 0:01:50.8]}
26... Qxd1 {[%clk 0:02:12.8]} 27. Rg1 {[%clk 0:01:40.9]} 27... Qxh5 {[%clk
0:02:08.9]} 28. Be2 {[%clk 0:01:40.2]} 28... Qh4 {[%clk 0:02:01.5]} 29. Rg4
{[%clk 0:01:38.9]} 29... Qh2 {[%clk 0:02:00.1]} 30. Bb2 {[%clk 0:01:19.8]} 30...
f6 {[%clk 0:01:56.4]} 31. Bf3 {[%clk 0:01:12.4]} 31... Rac8 {[%clk 0:01:53.9]}
32. Rg2 {[%clk 0:01:12.1]} 32... Qh1+ {[%clk 0:01:53.7]} 33. Rg1 {[%clk
0:01:06.6]} 33... Qh3 {[%clk 0:01:52]} 34. Qf2 {[%clk 0:01:00.6]} 34... Qf5
{[%clk 0:01:49.6]} 35. Bc1 {[%clk 0:00:57.2]} 35... Rc3 {[%clk 0:01:41.6]} 36.
Qg2 {[%clk 0:00:41.5]} 36... g5 {[%clk 0:01:41]} 37. Bd1 {[%clk 0:00:35.2]}
37... Rfc8 {[%clk 0:01:35.4]} 38. Rf1 {[%clk 0:00:29.2]} 38... Qg6 {[%clk
0:01:35]} 39. Bb2 {[%clk 0:00:25.6]} 39... Kg7 {[%clk 0:01:31]} 40. Qd2 {[%clk
0:00:23.7]} 40... Bb5 {[%clk 0:01:18.8]} 41. Rf2 {[%clk 0:00:21.8]} 41... Rxc2
{[%clk 0:01:16.8]} 42. Bxc2 {[%clk 0:00:18.3]} 42... Rxc2 {[%clk 0:01:16.5]} 43.
Bxf6+ {[%clk 0:00:17.4]} 43... Kh7 {[%clk 0:01:12.4]} 44. Qxc2 {[%clk
0:00:07.6]} 44... Bd3 {[%clk 0:01:12.1]} 45. Bb2 {[%clk 0:00:06.6]} 45... Bxc2+
{[%clk 0:01:11.4]} 46. Rxc2 {[%clk 0:00:07.5]} 46... Qe4 {[%clk 0:01:10.2]} 47.
a4 {[%clk 0:00:07.5]} 47... h5 {[%clk 0:01:09.7]} 48. Bc1 {[%clk 0:00:06.1]}
48... g4 {[%clk 0:01:08.3]} 49. Kb2 {[%clk 0:00:05.4]} 49... h4 {[%clk
0:01:04.9]} 50. Rc7+ {[%clk 0:00:05.6]} 50... Kg6 {[%clk 0:01:05]} 51. Rxb7
{[%clk 0:00:06.5]} 51... g3 {[%clk 0:01:04.5]} 52. Rxa7 {[%clk 0:00:04.9]} 52...
Qd4+ {[%clk 0:01:03.7]} 0-1

[Event "Late-Titled-Tuesday-Blitz-January-23-2024"]
[Site "Chess.com"]
[Date "2024.01.23"]
[Round "10"]
[White "djano"]
[Black "Alexei_Gubajdullin"]
[Result "0-1"]
[WhiteElo "2704"]
[BlackElo "2622"]
[TimeControl "180+1"]
[EndTime "15:52:08 PST"]
[Termination "Alexei_Gubajdullin won on time"]

1. e4 {[%clk 0:03:00.9]} 1... e5 {[%clk 0:02:59.9]} 2. Nf3 {[%clk 0:03:00.8]}
2... Nf6 {[%clk 0:03:00]} 3. d4 {[%clk 0:02:58.5]} 3... Nxe4 {[%clk 0:02:59.4]}
4. dxe5 {[%clk 0:02:58.9]} 4... d5 {[%clk 0:02:59]} 5. exd6 {[%clk 0:02:57.5]}
5... Nxd6 {[%clk 0:02:55.7]} 6. Nc3 {[%clk 0:02:57.2]} 6... Be7 {[%clk
0:02:50.9]} 7. Bf4 {[%clk 0:02:54.5]} 7... O-O {[%clk 0:02:50.7]} 8. Qd2 {[%clk
0:02:54.5]} 8... Re8 {[%clk 0:02:47.9]} 9. O-O-O {[%clk 0:02:54.6]} 9... Bf8
{[%clk 0:02:39.6]} 10. h4 {[%clk 0:02:48.8]} 10... Nc6 {[%clk 0:02:38.5]} 11.
Bd3 {[%clk 0:02:46.1]} 11... Nb4 {[%clk 0:02:25.5]} 12. Bg5 {[%clk 0:02:28.9]}
12... Nxd3+ {[%clk 0:02:18.4]} 13. Qxd3 {[%clk 0:02:27.9]} 13... Qd7 {[%clk
0:02:08.2]} 14. Nd4 {[%clk 0:02:15.6]} 14... c6 {[%clk 0:01:33.3]} 15. Kb1
{[%clk 0:02:08]} 15... Nf5 {[%clk 0:01:31.7]} 16. Qc4 {[%clk 0:01:26.8]} 16...
Nxd4 {[%clk 0:01:24.7]} 17. Rxd4 {[%clk 0:01:26.8]} 17... Qf5 {[%clk 0:01:18.3]}
18. Be3 {[%clk 0:01:14.7]} 18... Be6 {[%clk 0:01:14.1]} 19. Qe2 {[%clk
0:01:08.6]} 19... b5 {[%clk 0:00:50.8]} 20. Ne4 {[%clk 0:00:59.5]} 20... Bc4
{[%clk 0:00:46.6]} 21. Qf3 {[%clk 0:00:54.6]} 21... Qxf3 {[%clk 0:00:29.5]} 22.
gxf3 {[%clk 0:00:55.5]} 22... Bd5 {[%clk 0:00:29.8]} 23. Rg1 {[%clk 0:00:51.9]}
23... Kh8 {[%clk 0:00:29.7]} 24. h5 {[%clk 0:00:43.9]} 24... h6 {[%clk
0:00:29.5]} 25. Bf4 {[%clk 0:00:21.5]} 25... Re6 {[%clk 0:00:29.3]} 26. b3
{[%clk 0:00:17.7]} 26... Rae8 {[%clk 0:00:29]} 27. Kb2 {[%clk 0:00:13.5]} 27...
Be7 {[%clk 0:00:25.9]} 28. c3 {[%clk 0:00:11.9]} 28... f5 {[%clk 0:00:25.4]} 29.
Nd2 {[%clk 0:00:11.4]} 29... Bf6 {[%clk 0:00:25.5]} 30. Rd3 {[%clk 0:00:12]}
30... b4 {[%clk 0:00:25.7]} 31. Kc2 {[%clk 0:00:09.5]} 31... bxc3 {[%clk
0:00:25.6]} 32. Nc4 {[%clk 0:00:08.5]} 32... Re2+ {[%clk 0:00:25.1]} 33. Kc1
{[%clk 0:00:09.1]} 33... Rxa2 {[%clk 0:00:23.8]} 34. Rgd1 {[%clk 0:00:07.1]}
34... Ree2 {[%clk 0:00:22.8]} 0-1

[Event "Late-Titled-Tuesday-Blitz-January-23-2024"]
[Site "Chess.com"]
[Date "2024.01.23"]
[Round "10"]
[White "DonJuan_34"]
[Black "KacperPolOK"]
[Result "1-0"]
[WhiteElo "2403"]
[BlackElo "2480"]
[TimeControl "180+1"]
[EndTime "15:52:10 PST"]
[Termination "DonJuan_34 won by checkmate"]

1. d4 {[%clk 0:03:00.9]} 1... e6 {[%clk 0:02:58.9]} 2. e4 {[%clk 0:02:59.8]}
2... d5 {[%clk 0:02:58.7]} 3. exd5 {[%clk 0:02:54.5]} 3... exd5 {[%clk
0:02:57.7]} 4. Bf4 {[%clk 0:02:51.5]} 4... Nf6 {[%clk 0:02:57]} 5. Nc3 {[%clk
0:02:50.5]} 5... c6 {[%clk 0:02:49.5]} 6. Qd2 {[%clk 0:02:49.1]} 6... Bd6 {[%clk
0:02:49]} 7. O-O-O {[%clk 0:02:41.6]} 7... Be6 {[%clk 0:02:46.1]} 8. f3 {[%clk
0:02:38.3]} 8... a5 {[%clk 0:02:43.9]} 9. g4 {[%clk 0:02:36.4]} 9... a4 {[%clk
0:02:41.9]} 10. h4 {[%clk 0:02:21.9]} 10... a3 {[%clk 0:02:41]} 11. b3 {[%clk
0:02:21.9]} 11... Bb4 {[%clk 0:02:05.6]} 12. h5 {[%clk 0:02:14.1]} 12... Qa5
{[%clk 0:02:04.7]} 13. Nge2 {[%clk 0:02:13.4]} 13... Nfd7 {[%clk 0:01:59.6]} 14.
g5 {[%clk 0:01:35.3]} 14... c5 {[%clk 0:01:47]} 15. Bh3 {[%clk 0:01:20.5]} 15...
Ra6 {[%clk 0:01:42.9]} 16. Qe3 {[%clk 0:01:07.9]} 16... Rc6 {[%clk 0:01:31.9]}
17. Nxd5 {[%clk 0:00:57.6]} 17... cxd4 {[%clk 0:01:31.8]} 18. Qxd4 {[%clk
0:00:44.3]} 18... Bxd5 {[%clk 0:00:44.8]} 19. Qxd5 {[%clk 0:00:43.9]} 19... Nc5
{[%clk 0:00:45.4]} 20. Bxb8 {[%clk 0:00:28.3]} 20... O-O {[%clk 0:00:45.5]} 21.
Be5 {[%clk 0:00:22.6]} 21... Ra8 {[%clk 0:00:19.3]} 22. h6 {[%clk 0:00:21.9]}
22... Nxb3+ {[%clk 0:00:19.1]} 23. Qxb3 {[%clk 0:00:19.7]} 23... Qxe5 {[%clk
0:00:18]} 24. Qxb4 {[%clk 0:00:12.5]} 24... Qe3+ {[%clk 0:00:15.5]} 25. Qd2
{[%clk 0:00:09.7]} 25... Qe5 {[%clk 0:00:14.8]} 26. Qd4 {[%clk 0:00:09.2]} 26...
Qxg5+ {[%clk 0:00:12.8]} 27. f4 {[%clk 0:00:06.1]} 27... Qxh6 {[%clk 0:00:12.1]}
28. Bg2 {[%clk 0:00:06.3]} 28... Qe6 {[%clk 0:00:08.5]} 29. Bxc6 {[%clk
0:00:06.1]} 29... Qxa2 {[%clk 0:00:07.6]} 30. Qd8+ {[%clk 0:00:05.8]} 30... Rxd8
{[%clk 0:00:07.2]} 31. Rxd8# {[%clk 0:00:05.6]} 1-0